Workbook

Sheet Лист1
I1: К постановлению Администрации Североуральского городского округа от .07.2014г. №
A2: Приложение № 2 к муниципальной программе Североуральского городского округа «Развитие жилищно-коммунального хозяйства и транспортного обслуживания населения, повышение энергетической эффективности и охрана окружающей среды в Североуральском городском округе» на 2014-2020 годы
A3: План мероприятий
A4: по выполнению муниципальной программы Североуральского городского округа
A5: «Развитие жилищно-коммунального хозяйства и транспортного обслуживания населения,
A6: повышение энергетической эффективности и охрана окружающей среды в Североуральском городском округе» на 2014-2020 годы
A8: № строки | B8: Наименование мероприятия/ Источники расходов на финансирование | C8: Объем расходов на выполнение мероприятия за счет всех источников ресурсного обеспечения, тыс. руб. | K8: Номер строки целевых показателей, на достижение которых направлены мероприятия
C9: Всего | D9: первый год | E9: второй год | F9: третий год | G9: четвертый год | H9: пятый год | I9: шестой год | J9: седьмой год
B10: ВСЕГО по муниципальной программе, в том числе: | C10: =SUM(C11:C13) -> 925863.3 | D10: =SUM(D11:D13) -> 300128 | E10: =SUM(E11:E13) -> 238081.8 | F10: 56041.5 | G10: 82903 | H10: 82903 | I10: 82903 | J10: 82903
B11: местный бюджет | C11: =SUM(D11:J11) -> 578748.2 | D11: =SUM(D15+D19) -> 97765.8 | E11: =SUM(E15+E19) -> 93663.9 | F11: 55974.5 | G11: 82836 | H11: 82836 | I11: 82836 | J11: 82836
B12: областной бюджет | C12: =SUM(D12:J12) -> 165290.4 | D12: =SUM(D16+D20) -> 134104.3 | E12: =SUM(E16+E20) -> 30851.1 | F12: 67 | G12: 67 | H12: 67 | I12: 67 | J12: 67
B13: федеральный бюджет | C13: =SUM(D13:J13) -> 181824.7 | D13: =SUM(D21+D17) -> 68257.9 | E13: =SUM(E21+E17) -> 113566.8 | F13: 0 | G13: 0 | H13: 0 | I13: 0 | J13: 0
B14: Капитальные вложения | C14: =SUM(C15:C17) -> 590986.1 | D14: =SUM(D15:D17) -> 250365.9 | E14: =SUM(E15:E17) -> 191046.7 | F14: 8425.5 | G14: 35287 | H14: 35287 | I14: 35287 | J14: 35287
B15: местный бюджет | C15: =SUM(D15:J15) -> 245090.8 | D15: =D29+D85+D129+D152+D178+D212+D248+D267 -> 48821.5 | E15: 46695.8 | F15: 8425.5 | G15: 35287 | H15: 35287 | I15: 35287 | J15: 35287
B16: областной бюджет | C16: =SUM(D16:J16) -> 164070.6 | D16: =D86+D153+D30 -> 133286.5 | E16: =E86+E153 -> 30784.1 | F16: 0 | G16: 0 | H16: 0 | I16: 0 | J16: 0
B17: федеральный бюджет | C17: =SUM(D17:J17) -> 181824.7 | D17: =D87+D154 -> 68257.9 | E17: 113566.8 | F17: 0 | G17: 0 | H17: 0 | I17: 0 | J17: 0
B18: Прочие нужды | C18: =SUM(C19:C20) -> 334877.2 | D18: =SUM(D19:D20) -> 49762.1 | E18: =SUM(E19:E20) -> 47035.1 | F18: 47616 | G18: 47616 | H18: 47616 | I18: 47616 | J18: 47616
B19: местный бюджет | C19: =SUM(D19:J19) -> 333657.4 | D19: =D44+D104+D138+D170+D221+D257+D277+D189 -> 48944.3 | E19: =E44+E104+E138+E170+E221+E257+E277+E189 -> 46968.1 | F19: 47549 | G19: 47549 | H19: 47549 | I19: 47549 | J19: 47549
B20: областной бюджет | C20: =SUM(D20:J20) -> 1219.8 | D20: =SUM(D105+D276) -> 817.8 | E20: =SUM(E105+E276) -> 67 | F20: 67 | G20: 67 | H20: 67 | I20: 67 | J20: 67
B21: федеральный бюджет | C21: =SUM(D21:J21) -> 0 | D21: 0 | E21: =E105 -> 0 | F21: 0 | G21: 0 | H21: 0 | I21: 0 | J21: 0
A22: Подпрограмма 1: Комплексное благоустройство территории Североуральского городского округа
B23: Всего по подпрограмме 1, | C23: =SUM(C25+C26) -> 181142.6 | D23: =SUM(D25+D26) -> 24893.9 | E23: =SUM(E25) -> 22806.2 | F23: 26688.5 | G23: 26688.5 | H23: 26688.5 | I23: 26688.5 | J23: 26688.5
B24: в том числе:
B25: местный бюджет | C25: =SUM(D25:J25) -> 179632.6 | D25: =SUM(D29+D44) -> 23383.9 | E25: =SUM(E29+E44) -> 22806.2 | F25: 26688.5 | G25: 26688.5 | H25: 26688.5 | I25: 26688.5 | J25: 26688.5
B26: областной бюджет | C26: =SUM(D26:J26) -> 1510 | D26: =SUM(D30) -> 1510 | E26: =SUM(E30) -> 0 | F26: 0 | G26: 0 | H26: 0 | I26: 0 | J26: 0
A27: 1. Капитальные вложения
B28: Всего по направлению «Капитальные вложения» всего, в том числе | C28: =SUM(D28:J28) -> 37957.7 | D28: =SUM(D29+D30) -> 3710 | E28: =SUM(E29) -> 2120.2 | F28: 6425.5 | G28: 6425.5 | H28: 6425.5 | I28: 6425.5 | J28: 6425.5
B29: местный бюджет | C29: =SUM(D29:J29) -> 36447.7 | D29: =SUM(D40) -> 2200 | E29: =SUM(E40) -> 2120.2 | F29: 6425.5 | G29: 6425.5 | H29: 6425.5 | I29: 6425.5 | J29: 6425.5
B30: областной бюджет | C30: =SUM(D30:J30) -> 1510 | D30: =SUM(D37) -> 1510 | E30: =SUM(E37) -> 0 | F30: 0 | G30: 0 | H30: 0 | I30: 0 | J30: 0
A31: 1.1. Бюджетные инвестиции в объекты капитального строительства
B32: Бюджетные инвестиции в объекты капитального строительства всего, в том числе | C32: 0 | D32: 0 | E32: 0 | F32: 0 | G32: 0 | H32: 0 | I32: 0 | J32: 0
B33: местный бюджет | C33: 0 | D33: 0 | E33: 0 | F33: 0 | G33: 0 | H33: 0 | I33: 0 | J33: 0
A34: 1.2. Иные капитальные вложения
B35: Всего | C35: =SUM(D35:J35) -> 37957.7 | D35: =SUM(D36:D37) -> 3710 | E35: =SUM(E36:E37) -> 2120.2 | F35: 6425.5 | G35: 6425.5 | H35: 6425.5 | I35: 6425.5 | J35: 6425.5
B36: местный бюджет | C36: =SUM(D36:J36) -> 36447.7 | D36: =SUM(D40) -> 2200 | E36: =SUM(E40) -> 2120.2 | F36: 6425.5 | G36: 6425.5 | H36: 6425.5 | I36: 6425.5 | J36: 6425.5
B37: областной бюджет | C37: =SUM(D37:J37) -> 1510 | D37: =SUM(D41) -> 1510 | E37: =SUM(E41) -> 0 | F37: 0 | G37: 0 | H37: 0 | I37: 0 | J37: 0
A38: Мероприятие 1 Благоустройство дворовых территорий Североуральского городского округа
B39: Всего, из них | C39: =SUM(D39:J39) -> 37957.7 | D39: =D40+D41 -> 3710 | E39: =SUM(E40) -> 2120.2 | F39: 6425.5 | G39: 6425.5 | H39: 6425.5 | I39: 6425.5 | J39: 6425.5 | K39: 4
B40: местный бюджет | C40: =SUM(D40:J40) -> 36447.7 | D40: 2200 | E40: 2120.2 | F40: 6425.5 | G40: =SUM(F40) -> 6425.5 | H40: =SUM(G40) -> 6425.5 | I40: =SUM(H40) -> 6425.5 | J40: =SUM(I40) -> 6425.5
B41: областной бюджет | C41: =D41+E41+F41+G41+H41+I41+J41 -> 1510 | D41: 1510 | E41: 0 | F41: 0 | G41: 0 | H41: 0 | I41: 0 | J41: 0
A42: 3. Прочие нужды
B43: Всего по направлению «Прочие нужды», всего, в том числе: | C43: =SUM(D43:J43) -> 143184.9 | D43: =SUM(D44) -> 21183.9 | E43: =SUM(E44) -> 20686 | F43: 20263 | G43: 20263 | H43: 20263 | I43: 20263 | J43: 20263
B44: местный бюджет | C44: =SUM(D44:J44) -> 143184.9 | D44: =SUM(D47+D50+D53+D56) -> 21183.9 | E44: 20686 | F44: 20263 | G44: 20263 | H44: 20263 | I44: 20263 | J44: 20263
A45: Мероприятие 2 - Уличное освещение
B46: Всего, из них | C46: =SUM(D46:J46) -> 90499 | D46: =SUM(D47) -> 11900 | E46: 13000 | F46: 13119.8 | G46: 13119.8 | H46: 13119.8 | I46: 13119.8 | J46: 13119.8 | K46: 7
B47: местный бюджет | C47: =SUM(D47:J47) -> 90499 | D47: 11900 | E47: 13000 | F47: 13119.8 | G47: =SUM(F47) -> 13119.8 | H47: =SUM(G47) -> 13119.8 | I47: =SUM(H47) -> 13119.8 | J47: =SUM(I47) -> 13119.8
A48: Мероприятие 3 - Озеленение (цветники, валка сухих деревьев)
B49: Всего, из них | C49: =SUM(D49:J49) -> 15759 | D49: =SUM(D50) -> 2906.6 | E49: 2056.4 | F49: 2159.2 | G49: 2159.2 | H49: 2159.2 | I49: 2159.2 | J49: 2159.2 | K49: 9
B50: местный бюджет | C50: =SUM(D50:J50) -> 15759 | D50: 2906.6 | E50: 2056.4 | F50: 2159.2 | G50: =SUM(F50) -> 2159.2 | H50: =SUM(G50) -> 2159.2 | I50: =SUM(H50) -> 2159.2 | J50: =SUM(I50) -> 2159.2
A51: Мероприятие 4 - Организация и содержание мест захоронения
B52: Всего, из них | C52: =SUM(D52:J52) -> 15587.3 | D52: =SUM(D53) -> 1995 | E52: 2594.8 | F52: 2199.5 | G52: 2199.5 | H52: 2199.5 | I52: 2199.5 | J52: 2199.5 | K52: 14
B53: местный бюджет | C53: =SUM(D53:J53) -> 15587.3 | D53: 1995 | E53: 2594.8 | F53: 2199.5 | G53: =SUM(F53) -> 2199.5 | H53: =SUM(G53) -> 2199.5 | I53: =SUM(H53) -> 2199.5 | J53: =SUM(I53) -> 2199.5
A54: Мероприятие 5 - Прочие мероприятия по благоустройству
B55: Всего, в том числе: | C55: =SUM(D55:J55) -> 21339.6 | D55: =SUM(D56) -> 4382.3 | E55: 3034.8 | F55: =SUM(F56) -> 2784.5 | G55: 2784.5 | H55: 2784.5 | I55: 2784.5 | J55: 2784.5 | K55: 5,11,12,13,15
B56: местный бюджет | C56: =SUM(D56:J56) -> 21339.6 | D56: =SUM(D59+D62+D65+D68+D71+D77+D74) -> 4382.3 | E56: =SUM(E59+E62+E65+E68+E71+E77) -> 3034.8 | F56: 2784.5 | G56: =SUM(G59+G62+G65+G68+G71+G77) -> 2784.5 | H56: 2784.5 | I56: 2784.5 | J56: 2784.5
A57: - Содержание памятников
B58: Всего: | C58: =SUM(C59) -> 1709.8 | D58: 387.3 | E58: 220 | F58: 220.5 | G58: 220.5 | H58: 220.5 | I58: 220.5 | J58: 220.5 | K58: 15
B59: местный бюджет | C59: =SUM(D59:J59) -> 1709.8 | D59: 387.3 | E59: 220 | F59: 220.5 | G59: 220.5 | H59: =SUM(G59) -> 220.5 | I59: =SUM(H59) -> 220.5 | J59: =SUM(I59) -> 220.5
A60: - Проведение комплекса профилактических работ по уходу за объектами благоустройства
B61: Всего: | C61: =SUM(C62) -> 1296.5 | D61: =SUM(D62) -> 1099.5 | E61: =SUM(E62) -> 31.5 | F61: 33.1 | G61: 33.1 | H61: 33.1 | I61: 33.1 | J61: 33.1 | K61: 5
B62: местный бюджет | C62: =SUM(D62:J62) -> 1296.5 | D62: 1099.5 | E62: 31.5 | F62: 33.1 | G62: 33.1 | H62: =SUM(G62) -> 33.1 | I62: =SUM(H62) -> 33.1 | J62: =SUM(I62) -> 33.1
A63: - Регулирование численности безнадзорных животных
B64: Всего: | C64: =SUM(C65) -> 3781.5 | D64: =SUM(D65) -> 500 | E64: =SUM(E65) -> 525 | F64: 551.3 | G64: 551.3 | H64: 551.3 | I64: 551.3 | J64: 551.3 | K64: 11
B65: местный бюджет | C65: =SUM(D65:J65) -> 3781.5 | D65: 500 | E65: 525 | F65: 551.3 | G65: 551.3 | H65: =SUM(G65) -> 551.3 | I65: =SUM(H65) -> 551.3 | J65: =SUM(I65) -> 551.3
A66: - Содержание биоямы (скотомогильник)
B67: Всего: | C67: =SUM(C68) -> 589.9 | D67: =SUM(D68) -> 130.4 | E67: =SUM(E68) -> 73.5 | F67: 77.2 | G67: 77.2 | H67: 77.2 | I67: 77.2 | J67: 77.2 | K67: 13
B68: местный бюджет | C68: =SUM(D68:J68) -> 589.9 | D68: 130.4 | E68: 73.5 | F68: 77.2 | G68: 77.2 | H68: =SUM(G68) -> 77.2 | I68: =SUM(H68) -> 77.2 | J68: =SUM(I68) -> 77.2
A69: - Обустройство новогодних городков
B70: Всего: | C70: =SUM(C71) -> 13111.8 | D70: =SUM(D71) -> 1685.5 | E70: =SUM(E71) -> 2134.8 | F70: 1858.3 | G70: 1858.3 | H70: 1858.3 | I70: 1858.3 | J70: 1858.3 | K70: 5
B71: местный бюджет | C71: =SUM(D71:J71) -> 13111.8 | D71: 1685.5 | E71: 2134.8 | F71: 1858.3 | G71: 1858.3 | H71: =SUM(G71) -> 1858.3 | I71: =SUM(H71) -> 1858.3 | J71: =SUM(I71) -> 1858.3
A72: - Приобретение и монтаж декоративного освещения на газонах площади Мира
B73: Всего: | C73: =SUM(C74) -> 350 | D73: =SUM(D74) -> 350 | E73: =SUM(E74) -> 0 | F73: 0 | G73: 0 | H73: 0 | I73: 0 | J73: 0 | K73: 5
B74: местный бюджет | C74: =SUM(D74:J74) -> 350 | D74: 350 | E74: 0 | F74: 0 | G74: 0 | H74: =SUM(G74) -> 0 | I74: =SUM(H74) -> 0 | J74: =SUM(I74) -> 0
A75: - Акарицидная обработка общественных мест
B76: Всего: | C76: =SUM(C77) -> 500.1 | D76: =SUM(D77) -> 229.6 | E76: =SUM(E77) -> 50 | F76: 44.1 | G76: 44.1 | H76: 44.1 | I76: 44.1 | J76: 44.1 | K76: 12
B77: местный бюджет | C77: =SUM(D77:J77) -> 500.1 | D77: 229.6 | E77: 50 | F77: 44.1 | G77: 44.1 | H77: =SUM(G77) -> 44.1 | I77: =SUM(H77) -> 44.1 | J77: =SUM(I77) -> 44.1
A78: Подпрограмма 2: Муниципальная программа по энергосбережению и повышению энергетической эффективности объектов Североуральского городского округа
B79: Всего по подпрограмме 2, в том числе | C79: =SUM(D79:J79) -> 36693.9 | D79: =SUM(D80:D82) -> 7547.4 | E79: =SUM(E80:E82) -> 6467.5 | F79: 4535.8 | G79: 4535.8 | H79: 4535.8 | I79: 4535.8 | J79: 4535.8
B80: местный бюджет | C80: =SUM(D80:J80) -> 33349.5 | D80: =SUM(D85+D104) -> 4203 | E80: =SUM(E85+E104) -> 6467.5 | F80: =F85+F104 -> 4535.8 | G80: =SUM(G85+G104) -> 4535.8 | H80: =SUM(H85+H104) -> 4535.8 | I80: =SUM(I85+I104) -> 4535.8 | J80: =SUM(J85+J104) -> 4535.8
B81: областной бюджет | C81: =SUM(D81:J81) -> 3344.4 | D81: =SUM(D86+D105) -> 3344.4 | E81: =SUM(E86+E105) -> 0 | F81: 0 | G81: 0 | H81: 0 | I81: 0 | J81: 0
B82: федеральный бюджет | C82: =SUM(D82:J82) -> 0 | D82: 0 | E82: =SUM(E87+E105) -> 0 | F82: 0 | G82: 0 | H82: 0 | I82: 0 | J82: 0
A83: 1. Капитальные вложения
B84: Всего по направлению «Капитальные вложения», всего, в том числе | C84: =SUM(C85:C87) -> 17187.4 | D84: =SUM(D85:D87) -> 3187.4 | E84: =SUM(E85:E87) -> 4000 | F84: 2000 | G84: 2000 | H84: 2000 | I84: 2000 | J84: 2000
B85: местный бюджет | C85: =SUM(D85:J85) -> 14431 | D85: 431 | E85: =SUM(E94) -> 4000 | F85: 2000 | G85: 2000 | H85: 2000 | I85: 2000 | J85: 2000
B86: областной бюджет | C86: =SUM(D86:J86) -> 2756.4 | D86: =SUM(D95) -> 2756.4 | E86: =SUM(E95) -> 0 | F86: 0 | G86: 0 | H86: 0 | I86: 0 | J86: 0
B87: федеральный бюджет | C87: =SUM(D87:J87) -> 0 | D87: =SUM(D96) -> 0 | E87: =SUM(E96) -> 0 | F87: 0 | G87: 0 | H87: 0 | I87: 0 | J87: 0
A88: 1.1. Бюджетные инвестиции в объекты капитального строительства
B89: Бюджетные инвестиции в объекты капитального строительства всего, в том числе | C89: 0 | D89: 0 | E89: 0 | F89: 0 | G89: 0 | H89: 0 | I89: 0 | J89: 0
B90: местный бюджет | C90: 0 | D90: 0 | E90: 0 | F90: 0 | G90: 0 | H90: 0 | I90: 0 | J90: 0
B91: областной бюджет
A92: 1.2. Иные капитальные вложения
B93: Всего, в том числе | C93: =SUM(C94:C96) -> 17187.4 | D93: =SUM(D94:D96) -> 3187.4 | E93: =SUM(E94:E96) -> 4000 | F93: 2000 | G93: 2000 | H93: 2000 | I93: 2000 | J93: 2000
B94: местный бюджет | C94: =SUM(D94:J94) -> 14431 | D94: =SUM(D99) -> 431 | E94: =SUM(E99) -> 4000 | F94: 2000 | G94: 2000 | H94: 2000 | I94: 2000 | J94: 2000
B95: областной бюджет | C95: =SUM(D95:J95) -> 2756.4 | D95: =SUM(D100) -> 2756.4 | E95: =SUM(E100) -> 0 | F95: 0 | G95: 0 | H95: 0 | I95: 0 | J95: 0
B96: федеральный бюджет | C96: =SUM(D96:J96) -> 0 | D96: =SUM(D101) -> 0 | E96: =SUM(E101) -> 0 | F96: 0 | G96: 0 | H96: 0 | I96: 0 | J96: 0
A97: Мероприятие 6- Реконструкция, модернизация водопроводных сетей, сетей системы водоотведения с заменой (без замены) оборудования с более высоким КПД, установка регулируемого привода, тепловых сетей с использованием энергетически эффективных технологий по тепловой изоляции, восстановление тепловой изоляции с применением эффективных технологий
B98: Всего, из них | C98: =SUM(C99:C101) -> 17187.4 | D98: =SUM(D99:D101) -> 3187.4 | E98: =SUM(E99:E101) -> 4000 | F98: 2000 | G98: 2000 | H98: 2000 | I98: 2000 | J98: 2000 | K98: 27
B99: местный бюджет | C99: =SUM(D99:J99) -> 14431 | D99: 431 | E99: 4000 | F99: 2000 | G99: =SUM(F99) -> 2000 | H99: 2000 | I99: 2000 | J99: 2000
B100: областной бюджет | C100: =SUM(D100:J100) -> 2756.4 | D100: 2756.4 | E100: 0 | F100: =SUM(E100*1.05) -> 0 | G100: 0 | H100: 0 | I100: 0 | J100: 0
B101: федеральный бюджет | C101: =SUM(D101:J101) -> 0 | D101: 0 | E101: 0 | F101: 0 | G101: =SUM(F101) -> 0 | H101: =SUM(G101) -> 0 | I101: =SUM(H101) -> 0 | J101: =SUM(I101) -> 0
A102: 3. Прочие нужды
B103: Всего по направлению «Прочие нужды», всего, в том числе: | C103: =SUM(D103:J103) -> 19506.5 | D103: =SUM(D104:D105) -> 4360 | E103: =SUM(E104:E105) -> 2467.5 | F103: 2535.8 | G103: 2535.8 | H103: 2535.8 | I103: 2535.8 | J103: 2535.8
B104: местный бюджет | C104: =SUM(D104:J104) -> 18918.5 | D104: =SUM(D108+D116+D120+D123) -> 3772 | E104: =SUM(E108+E116+E120+E123) -> 2467.5 | F104: 2535.8 | G104: 2535.8 | H104: 2535.8 | I104: 2535.8 | J104: 2535.8
B105: областной бюджет | C105: =SUM(D105:J105) -> 588 | D105: =SUM(D117) -> 588 | E105: =SUM(E117) -> 0 | F105: 0 | G105: 0 | H105: 0 | I105: 0 | J105: 0
A106: Мероприятие 7 - Оснащение зданий (строений, сооружений), находящихся в муниципальной собственности, многоквартирных жилых домов, жилых помещений, квартир приборами учета используемых энергетических ресурсов, в том числе разработка проектно-сметной документации
B107: всего, в том числе: | C107: =SUM(D107:J107) -> 3794 | D107: =SUM(D108:D109) -> 1200 | E107: 415 | F107: 435.8 | G107: 435.8 | H107: 435.8 | I107: 435.8 | J107: 435.8 | K107: 19,21,22,23,24
B108: местный бюджет | C108: =SUM(D108:J108) -> 3794 | D108: =SUM(D113) -> 1200 | E108: =SUM(E113) -> 415 | F108: 435.8 | G108: 435.8 | H108: 435.8 | I108: 435.8 | J108: 435.8
B109: областной бюджет | C109: =SUM(D109:J109) -> 0 | D109: =SUM(D110) -> 0 | E109: =SUM(E110) -> 0 | F109: 0 | G109: 0 | H109: 0 | I109: 0 | J109: 0
B110: федеральный бюджет | C110: =SUM(D110:J110) -> 0 | D110: 0 | E110: 0 | F110: 0 | G110: =SUM(F110) -> 0 | H110: =SUM(G110) -> 0 | I110: =SUM(H110) -> 0 | J110: =SUM(I110) -> 0
A111: - Оснащение жилых домов (субсидии)
B112: Всего: | C112: =SUM(C113) -> 3794 | D112: 1200 | E112: 415 | F112: 435.8 | G112: 435.8 | H112: 435.8 | I112: 435.8 | J112: 435.8
B113: местный бюджет | C113: =SUM(D113:J113) -> 3794 | D113: 1200 | E113: 415 | F113: 435.8 | G113: =SUM(F113) -> 435.8 | H113: =SUM(G113) -> 435.8 | I113: =SUM(H113) -> 435.8 | J113: =SUM(I113) -> 435.8
A114: Мероприятие 9 - Закупка и установка осветительного оборудования с заменой неэффективного на энергосберегающее, в том числе замена ламп накаливания на энергосберегающие, модернизация сетей уличного освещения, проектно-сметные работы, экспертиза проектно-сметной документации
B115: всего, из них: | C115: =SUM(C116:C117) -> 15230 | D115: =SUM(D116:D117) -> 2730 | E115: =SUM(E116:E117) -> 2000 | F115: 2100 | G115: 2100 | H115: 2100 | I115: 2100 | J115: 2100 | K115: 26
B116: местный бюджет | C116: =SUM(D116:J116) -> 14642 | D116: 2142 | E116: 2000 | F116: 2100 | G116: =SUM(F116) -> 2100 | H116: 2100 | I116: 2100 | J116: 2100
B117: областной бюджет | C117: =SUM(D117:J117) -> 588 | D117: 588 | E117: 0 | F117: 0 | G117: 0 | H117: 0 | I117: 0 | J117: 0
A118: Мероприятие 10 - Разработка схемы водоснабжения Североуральского городского округа
B119: всего, из них: | C119: =SUM(D119:J119) -> 380 | D119: =SUM(D120) -> 380 | E119: =SUM(E120) -> 0 | F119: 0 | G119: 0 | H119: 0 | I119: 0 | J119: 0 | K119: 28
B120: местный бюджет | C120: =SUM(D120:J120) -> 380 | D120: 380 | E120: 0 | F120: 0 | G120: =SUM(F120) -> 0 | H120: =SUM(G120) -> 0 | I120: =SUM(H120) -> 0 | J120: =SUM(I120) -> 0
A121: Мероприятие 11 - Прочие мероприятия (оформление актов выбора трассы под строительство водопроводов, сетей уличного освещения, газопроводов и т.п.)
B122: всего, из них: | C122: =SUM(D122:J122) -> 102.5 | D122: =SUM(D123) -> 50 | E122: =SUM(E123) -> 52.5 | F122: 0 | G122: 0 | H122: 0 | I122: 0 | J122: 0 | K122: 29
B123: местный бюджет | C123: =SUM(D123:J123) -> 102.5 | D123: 50 | E123: 52.5 | F123: 0 | G123: =SUM(F123) -> 0 | H123: =SUM(G123) -> 0 | I123: =SUM(H123) -> 0 | J123: =SUM(I123) -> 0
A124: Подпрограмма 3: Развитие лесного хозяйства на территории Североуральского городского округа
B125: Всего по подпрограмме 1, всего, в том числе | C125: =SUM(C126:C126) -> 2707 | D125: =SUM(D126) -> 1513 | E125: =SUM(E126) -> 191 | F125: 200.6 | G125: 200.6 | H125: 200.6 | I125: 200.6 | J125: 200.6
B126: местный бюджет | C126: =SUM(D126:J126) -> 2707 | D126: =SUM(D138) -> 1513 | E126: =SUM(E138) -> 191 | F126: 200.6 | G126: 200.6 | H126: 200.6 | I126: 200.6 | J126: 200.6
A127: 1. Капитальные вложения
B128: Всего по направлению «Капитальные вложения», всего, в том числе | C128: 0 | D128: 0 | E128: 0 | F128: 0 | G128: 0 | H128: 0 | I128: 0 | J128: 0
B129: местный бюджет | C129: 0 | D129: 0 | E129: 0 | F129: 0 | G129: 0 | H129: 0 | I129: 0 | J129: 0
A130: 1.1. Бюджетные инвестиции в объекты капитального строительства
B131: Бюджетные инвестиции в объекты капитального строительства всего, в том числе: | C131: =SUM(C132) -> 0 | D131: =SUM(D132) -> 0 | E131: 0 | F131: 0 | G131: 0 | H131: 0 | I131: 0 | J131: 0
B132: местный бюджет | C132: 0 | D132: 0 | E132: 0 | F132: 0 | G132: 0 | H132: 0 | I132: 0 | J132: 0
A133: 1.2. Иные капитальные вложения
B134: Всего, в том числе: | C134: =SUM(A136) -> 0 | D134: 0 | E134: 0 | F134: 0 | G134: 0 | H134: 0 | I134: 0 | J134: 0
B135: местный бюджет | C135: 0 | D135: 0 | E135: 0 | F135: 0 | G135: 0 | H135: 0 | I135: 0 | J135: 0
A136: 3. Прочие нужды
B137: Всего, из них | C137: =SUM(C138:C138) -> 2707 | D137: 1513 | E137: 191 | F137: 200.6 | G137: 200.6 | H137: 200.6 | I137: 200.6 | J137: 200.6
B138: местный бюджет | C138: =SUM(D138:J138) -> 2707 | D138: =SUM(D141) -> 1513 | E138: =SUM(E141) -> 191 | F138: 200.6 | G138: 200.6 | H138: 200.6 | I138: 200.6 | J138: 200.6
A139: Мероприятие 12 - Развитие лесного хозяйства на территории Североуральского городского округа
B140: Всего, в том числе: | C140: =SUM(D140:J140) -> 2707 | D140: =SUM(D141) -> 1513 | E140: =SUM(E141) -> 191 | F140: 200.6 | G140: 200.6 | H140: 200.6 | I140: 200.6 | J140: 200.6 | K140: 33
B141: местный бюджет | C141: =SUM(D141:J141) -> 2707 | D141: =SUM(D144) -> 1513 | E141: =SUM(E144) -> 191 | F141: 200.6 | G141: 200.6 | H141: 200.6 | I141: 200.6 | J141: 200.6
A142: - Межевание городских лесов, постановка на кадастровый учет
B143: Всего: | C143: =SUM(C144) -> 2707 | D143: =SUM(D144) -> 1513 | E143: =SUM(E144) -> 191 | F143: 200.6 | G143: 200.6 | H143: 200.6 | I143: 200.6 | J143: 200.6 | K143: 33
B144: местный бюджет | C144: =SUM(D144:J144) -> 2707 | D144: 1513 | E144: 191 | F144: 200.6 | G144: =SUM(F144) -> 200.6 | H144: =SUM(G144) -> 200.6 | I144: =SUM(H144) -> 200.6 | J144: =SUM(I144) -> 200.6
A145: Подпрограмма 4 : Переселение граждан на территории Североуральского городского округа из аварийного жилищного фонда с учетом необходимости развития малоэтажного жилищного строительства
B146: Всего по подпрограмме 4, всего, в том числе | C146: =SUM(C147:C149) -> 535841 | D146: =SUM(D147:D149) -> 243468.5 | E146: 184926.5 | F146: 0 | G146: 26861.5 | H146: 26861.5 | I146: 26861.5 | J146: 26861.5
B147: местный бюджет | C147: =SUM(D147:J147) -> 194212.1 | D147: =SUM(D152) -> 46190.5 | E147: =SUM(E152) -> 40575.6 | F147: 0 | G147: 26861.5 | H147: 26861.5 | I147: 26861.5 | J147: 26861.5
B148: областной бюджет | C148: =SUM(D148:J148) -> 159804.2 | D148: =SUM(D153) -> 129020.1 | E148: =SUM(E153) -> 30784.1 | F148: 0 | G148: 0 | H148: 0 | I148: 0 | J148: 0
B149: федеральный бюджет | C149: =SUM(D149:J149) -> 181824.7 | D149: =SUM(D154) -> 68257.9 | E149: =SUM(E154) -> 113566.8 | F149: 0 | G149: 0 | H149: 0 | I149: 0 | J149: 0
A150: 1. Капитальные вложения
B151: Всего по направлению «Капитальные вложения», всего, в том числе | C151: =SUM(C152:C154) -> 535841 | D151: =SUM(D152:D154) -> 243468.5 | E151: =SUM(E152:E154) -> 184926.5 | F151: 0 | G151: 26861.5 | H151: 26861.5 | I151: 26861.5 | J151: 26861.5
B152: местный бюджет | C152: =SUM(D152:J152) -> 194212.1 | D152: =SUM(D165) -> 46190.5 | E152: =SUM(E165) -> 40575.6 | F152: 0 | G152: 26861.5 | H152: 26861.5 | I152: 26861.5 | J152: 26861.5
B153: областной бюджет | C153: =SUM(D153:J153) -> 159804.2 | D153: =SUM(D166) -> 129020.1 | E153: =SUM(E166) -> 30784.1 | F153: 0 | G153: 0 | H153: 0 | I153: 0 | J153: 0
B154: федеральный бюджет | C154: =SUM(D154:J154) -> 181824.7 | D154: =SUM(D167) -> 68257.9 | E154: =SUM(E167) -> 113566.8 | F154: 0 | G154: 0 | H154: 0 | I154: 0 | J154: 0
A155: 1.1. Бюджетные инвестиции в объекты капитального строительства
B156: Бюджетные инвестиции в объекты капитального строительства всего, в том числе: | C156: =SUM(C157) -> 0 | D156: =SUM(D157) -> 0 | E156: 0 | F156: 0 | G156: 0 | H156: 0 | I156: 0 | J156: 0
B157: местный бюджет | C157: 0 | D157: 0 | E157: 0 | F157: 0 | G157: 0 | H157: 0 | I157: 0 | J157: 0
A158: 1.2. Иные капитальные вложения
B159: Всего, в том числе: | C159: =SUM(D159:J159) -> 535841 | D159: =SUM(D160:D162) -> 243468.5 | E159: =SUM(E160:E162) -> 184926.5 | F159: 0 | G159: 26861.5 | H159: 26861.5 | I159: 26861.5 | J159: 26861.5
B160: местный бюджет | C160: =SUM(D160:J160) -> 194212.1 | D160: =SUM(D165) -> 46190.5 | E160: =SUM(E165) -> 40575.6 | F160: =SUM(F165) -> 0 | G160: =SUM(G165) -> 26861.5 | H160: =SUM(H165) -> 26861.5 | I160: 26861.5 | J160: 26861.5
B161: областной бюджет | C161: =SUM(D161:J161) -> 159804.2 | D161: 129020.1 | E161: =SUM(E166) -> 30784.1 | F161: 0 | G161: 0 | H161: 0 | I161: 0 | J161: 0
B162: федеральный бюджет | C162: =SUM(D162:J162) -> 181824.7 | D162: 68257.9 | E162: =SUM(E167) -> 113566.8 | F162: 0 | G162: 0 | H162: 0 | I162: 0 | J162: 0
A163: Мероприятие 13 - Переселение граждан на территории Североуральского городского округа из аварийного жилищного фонда с учетом необходимости развития малоэтажного жилищного строительства
B164: Всего по направлению «Капитальные вложения», всего, в том числе | C164: =SUM(D164:J164) -> 535841 | D164: =SUM(D165:D167) -> 243468.5 | E164: =SUM(E165:E167) -> 184926.5 | F164: 0 | G164: 26861.5 | H164: 26861.5 | I164: 26861.5 | J164: 26861.5 | K164: 37, 39, 40
B165: местный бюджет | C165: =SUM(D165:J165) -> 194212.1 | D165: 46190.5 | E165: 40575.6 | F165: 0 | G165: 26861.5 | H165: 26861.5 | I165: 26861.5 | J165: 26861.5
B166: областной бюджет | C166: =SUM(D166:J166) -> 159804.2 | D166: 129020.1 | E166: 30784.1 | F166: 0 | G166: 0 | H166: 0 | I166: 0 | J166: 0
B167: федеральный бюджет | C167: =SUM(D167:J167) -> 181824.7 | D167: 68257.9 | E167: 113566.8 | F167: 0 | G167: 0 | H167: 0 | I167: 0 | J167: 0
A168: 3 Прочие нужды
B169: Всего, в том числе: | C169: 0 | D169: 0 | E169: 0 | F169: 0 | G169: 0 | H169: 0 | I169: 0 | J169: 0
B170: местный бюджет | C170: 0 | D170: 0 | E170: 0 | F170: 0 | G170: 0 | H170: 0 | I170: 0 | J170: 0
A171: Подпрограмма 5 : Содержание и капитальный ремонт общего имущества муниципального жилищного фонда на территории Североуральского городского округа
B172: Всего по подпрограмме 5, в том числе | C172: =C173+C174+C175 -> 62134.3 | D172: 5750.2 | E172: 9021.6 | F172: 9472.5 | G172: 9472.5 | H172: 9472.5 | I172: 9472.5 | J172: 9472.5
B173: областной бюджет | C173: =SUM(D173:J173) -> 0 | D173: =SUM(D187) -> 0 | E173: =SUM(E187) -> 0 | F173: 0 | G173: 0 | H173: 0 | I173: 0 | J173: 0
B174: федеральный бюджет | C174: =SUM(D174:J174) -> 0 | D174: =SUM(D188) -> 0 | E174: =SUM(E188) -> 0 | F174: 0 | G174: 0 | H174: 0 | I174: 0 | J174: 0
B175: местный бюджет | C175: =SUM(D175:J175) -> 62134.3 | D175: =SUM(D189) -> 5750.2 | E175: =SUM(E189) -> 9021.6 | F175: 9472.5 | G175: 9472.5 | H175: 9472.5 | I175: 9472.5 | J175: 9472.5
A176: 1. Капитальные вложения
B177: Всего по направлению «Капитальные вложения», всего, в том числе | C177: =SUM(C178) -> 0 | D177: =SUM(D178) -> 0 | E177: 0 | F177: 0 | G177: 0 | H177: 0 | I177: 0 | J177: 0
B178: местный бюджет | C178: 0 | D178: 0 | E178: 0 | F178: 0 | G178: 0 | H178: 0 | I178: 0 | J178: 0
A179: 1.1. Бюджетные инвестиции в объекты капитального строительства
B180: Бюджетные инвестиции в объекты капитального строительства всего, в том числе: | C180: =SUM(C181) -> 0 | D180: =SUM(D181) -> 0 | E180: 0 | F180: 0 | G180: 0 | H180: 0 | I180: 0 | J180: 0
B181: местный бюджет | C181: =SUM(D181:J181) -> 0 | D181: 0 | E181: 0 | F181: 0 | G181: 0 | H181: 0 | I181: 0 | J181: 0
A182: 1.2. Иные капитальные вложения
B183: Всего, в том числе: | C183: 0 | D183: =SUM(C181) -> 0 | E183: 0 | F183: 0 | G183: 0 | H183: 0 | I183: 0 | J183: 0
B184: местный бюджет | C184: =SUM(D184:J184) -> 0 | D184: 0 | E184: 0 | F184: 0 | G184: 0 | H184: 0 | I184: 0 | J184: 0
A185: 3 Прочие нужды
B186: Всего, в том числе: | C186: =SUM(C187:C189) -> 62134.3 | D186: =SUM(D187:D189) -> 5750.2 | E186: =SUM(E187:E189) -> 9021.6 | F186: 9472.5 | G186: 9472.5 | H186: 9472.5 | I186: 9472.5 | J186: 9472.5
B187: областной бюджет | C187: =SUM(D187:J187) -> 0 | D187: =SUM(D205) -> 0 | E187: =SUM(E205) -> 0 | F187: 0 | G187: 0 | H187: 0 | I187: 0 | J187: 0
B188: федеральный бюджет | C188: =SUM(D188:J188) -> 0 | D188: =SUM(D206) -> 0 | E188: =SUM(E206) -> 0 | F188: 0 | G188: 0 | H188: 0 | I188: 0 | J188: 0
B189: местный бюджет | C189: =SUM(D189:J189) -> 62134.3 | D189: =D192+D195+D198+D201+D204 -> 5750.2 | E189: 9021.6 | F189: 9472.5 | G189: 9472.5 | H189: 9472.5 | I189: 9472.5 | J189: 9472.5
A190: Мероприятие 14 - Ремонт общего имущества и квартир, в которых проживают отдельные категории граждан муниципального жилищного фонда в целях приведения в состояние, отвечающее требованиям пожарной безопасности, санитарно-техническим и иным требованиям
B191: Всего, из них | C191: =SUM(C192) -> 7662.5 | D191: =SUM(D192) -> 964.9 | E191: =SUM(E192) -> 1081.6 | F191: 1123.2 | G191: 1123.2 | H191: 1123.2 | I191: 1123.2 | J191: 1123.2 | K191: 44
B192: местный бюджет | C192: =SUM(D192:J192) -> 7662.5 | D192: 964.9 | E192: 1081.6 | F192: 1123.2 | G192: =SUM(F192) -> 1123.2 | H192: =SUM(G192) -> 1123.2 | I192: =SUM(H192) -> 1123.2 | J192: =SUM(I192) -> 1123.2
A193: Мероприятие 15 - Возмещение недополученных доходов организациям, предоставляющим населению жилищные услуги по тарифам, не обеспечивающим возмещение издержек, по содержанию лифтового хозяйства
B194: Всего, из них | C194: =SUM(D194:J194) -> 11813.9 | D194: =SUM(D195) -> 1969.9 | E194: =SUM(E195) -> 1575 | F194: 1653.8 | G194: 1653.8 | H194: 1653.8 | I194: 1653.8 | J194: 1653.8 | K194: 46
B195: местный бюджет | C195: =SUM(D195:J195) -> 11813.9 | D195: 1969.9 | E195: 1575 | F195: 1653.8 | G195: =SUM(F195) -> 1653.8 | H195: =SUM(G195) -> 1653.8 | I195: =SUM(H195) -> 1653.8 | J195: =SUM(I195) -> 1653.8
A196: Мероприятие 16 - Возмещение недополученных доходов организациям, предоставляющим населению жилищные услуги по тарифам, не обеспечивающим возмещение издержек, по содержанию муниципального жилищного фонда поселка Покровск-Уральский
B197: Всего, из них | C197: =SUM(D197:J197) -> 7562.5 | D197: =SUM(D198) -> 1000 | E197: =SUM(E198) -> 1050 | F197: 1102.5 | G197: 1102.5 | H197: 1102.5 | I197: 1102.5 | J197: 1102.5 | K197: 46
B198: местный бюджет | C198: =SUM(D198:J198) -> 7562.5 | D198: 1000 | E198: 1050 | F198: 1102.5 | G198: =SUM(F198) -> 1102.5 | H198: =SUM(G198) -> 1102.5 | I198: =SUM(H198) -> 1102.5 | J198: =SUM(I198) -> 1102.5
A199: Мероприятие 17- Предоставление субсидий на удешевление стоимости услуг по содержанию и ремонту муниципального специализированного жилищного фонда (общежитий)
B200: Всего, из них | C200: =SUM(C201) -> 9830 | D200: =SUM(D201) -> 1300 | E200: =SUM(E201) -> 1365 | F200: 1433 | G200: 1433 | H200: 1433 | I200: 1433 | J200: 1433 | K200: 46
B201: местный бюджет | C201: =SUM(D201:J201) -> 9830 | D201: 1300 | E201: 1365 | F201: 1433 | G201: =SUM(F201) -> 1433 | H201: =SUM(G201) -> 1433 | I201: =SUM(H201) -> 1433 | J201: =SUM(I201) -> 1433
... 91 more rows

Sheet Лист2

Sheet Лист3
